Cogmind - Beta 14 @@@ ROGUE MODE // 2025.01.08 @ 01:52:17 Player: void Result: Self-destructed Performance ------------- Evolutions (1) 500 Regions Visited (3) 600 Robots Destroyed (12) 60 Value Destroyed (319) 319 Prototype IDs (0) 0 Alien Tech Used (0) 0 Bonus (0) 0 TOTAL SCORE: 1479 Bonus ------- None Cogmind --------- Core Integrity 383/400 Matter 292/300 Energy 250/250 System Corruption 0% Temperature Cool (0) Movement Walking (260) Ox2 Location -9/Materials Parts ------- > --- POWER (1) -------- Ion Engine > --- PROPULSION (2) --- Aluminum Leg > --- UTILITY (4) ------ Improved Heat Sink Large Storage Unit Seismic Detector > --- WEAPON (2) ------- Small Laser Assault Rifle > --- INVENTORY (15) --- Ion Engine Improved Heat Sink Small Storage Unit Grenade Launcher Mining Laser Peak State ------------ > --- POWER ------------ Ion Engine > --- PROPULSION ------- Aluminum Leg Aluminum Leg > --- UTILITY ---------- Improved Heat Sink Large Storage Unit Seismic Detector > --- WEAPON ----------- Small Laser Assault Rifle > --- INVENTORY -------- Ion Engine Improved Heat Sink Small Storage Unit Grenade Launcher Mining Laser [Rating: 10] Favorites ----------- Power Ion Engine Engine Ion Engine Propulsion Aluminum Leg Leg Aluminum Leg Utility Seismic Detector Device Seismic Detector Storage Large Storage Unit Weapon Assault Rifle Energy Gun Small Laser Ballistic Gun Assault Rifle Launcher Grenade Launcher Build | -11 -10 -10 -9 ------- Run | Yrd Mat Min Mat Slots Evolved 2 | . . . 2 Power . | . . . . Propulsion . | . . . . Utility 2 | . . . 2 Weapon . | . . . . Parts Attached 15 | 7 2 5 1 Power 2 | 1 1 . . Engine 2 | 1 1 . . Core . | . . . . Reactor . | . . . . Propulsion 3 | 2 . 1 . Treads . | . . . . Leg 3 | 2 . 1 . Wheel . | . . . . Hover . | . . . . Flight . | . . . . Utility 4 | 2 1 . 1 Device 2 | 1 . . 1 Storage 2 | 1 1 . . Processor . | . . . . Hackware . | . . . . Protection . | . . . . Artifact . | . . . . Weapon 6 | 2 . 4 . Energy Gun 1 | . . 1 . Energy Cannon . | . . . . Ballistic Gun 4 | 2 . 2 . Ballistic Cannon . | . . . . Launcher 1 | . . 1 . Special Weapon . | . . . . Impact Weapon . | . . . . Slashing Weapon . | . . . . Piercing Weapon . | . . . . Special Melee Weapon . | . . . . Unidentified Prototypes . | . . . . Parts Lost 4 | . . 3 1 Power . | . . . . Propulsion 2 | . . 1 1 Utility . | . . . . Weapon 2 | . . 2 . Highest Loss Streak 2 | . . 2 1 To Critical Strikes . | . . . . Average Slot Usage (%) 97 | . 100 97 84 Engine 13 | . 14 14 11 Leg 27 | . 28 27 18 Device 14 | . 14 14 22 Storage 13 | . 14 14 11 Energy Gun 2 | . . 2 11 Ballistic Gun 23 | . 28 22 11 Peak Build Rating 10 | 7 7 8 10 Average Rating 7 | 4 7 7 9 On Entrance 5 | . 7 7 8 Naked Turns . | . . . . Heaviest Build 31 | 13 30 31 30 Greatest Support 20 | 20 20 20 20 Greatest Overweight (x) 3 | 3 1 2 2 Average Overweight (x) . | . . 1 1 Largest Inventory Capacity 15 | 8 15 15 15 Average Capacity 14 | 7 14 15 15 Most Carried 7 | 3 5 7 6 Average Carried 5 | . 2 6 5 Final Capacity 15 | 8 15 15 15 Final Carried 6 | . 5 6 5 Class Distribution -------------------- 95% | Mutant 4% | Scavenger-Mutant Dominant Class ---------------- Mutant | -10/Materials Mutant | -10/Mines Scavenger-Mutant | -9/Materials Resources | -11 -10 -10 -9 ----------- Run | Yrd Mat Min Mat Matter Collected 563 | 259 97 207 . Remotely . | . . . . Salvage Created 267 | 22 99 146 . Parts 17 | 2 7 8 . Haulers Intercepted . | . . . . Recyclers Shooed . | . . . . Parts Field Recycled . | . . . . Retrieved Matter . | . . . . Parts Self-Destructed . | . . . . Prevented . | . . . . Kills | -11 -10 -10 -9 ------- Run | Yrd Mat Min Mat Combat Hostiles Destroyed 11 | . 4 7 . Guns 10 | . 4 6 . AOE 1 | . . 1 . Classes Destroyed 4 | 1 2 1 . Tunneler 1 | 1 . . . Swarmer 5 | . 3 2 . Grunt 5 | . 1 4 . Demolisher 1 | . . 1 . Best Kill Streak 3 | 1 3 2 . Combat Bots Only 3 | . 3 2 . Max Kills in Single Turn 1 | 1 1 1 . Gunslinging . | . . . . Exploded 1 | . . 1 . Melee . | . . . . Uniques/NPCs Destroyed . | . . . . Combat | -11 -10 -10 -9 -------- Run | Yrd Mat Min Mat Hostile Shots Fired 75 | . 27 39 9 Missed 15 | . 5 5 5 Damage Taken 674 | . 220 403 51 Core 132 | . 37 78 17 Absorbed by Shields . | . . . . Core Remaining (%) 77 | 100 . 54 . Volleys Fired 42 | 1 14 26 1 Largest 2 | 2 2 2 2 Hottest 60 | 40 40 40 60 Shots Fired 76 | 2 28 44 2 Gun 72 | 2 28 40 2 Cannon . | . . . . Launcher 4 | . . 4 . Special . | . . . . Kinetic 71 | 2 28 40 1 Thermal 1 | . . . 1 Explosive 4 | . . 4 . Electromagnetic . | . . . . Robot Hit Streak 11 | 1 5 11 1 Robot Miss Streak 4 | 1 3 4 1 Penetration Max . | . . . . Secondary Targets 3 | . 2 1 . Max Gunslinging Chain 1 | . 1 1 . Shots Hit Robots 43 | 1 16 25 1 Core Hits 22 | 1 6 15 . Critical Kills . | . . . . Critical Parts Destroyed . | . . . . Critical Strikes . | . . . . Melee Attacks . | . . . . Impact . | . . . . Slashing . | . . . . Piercing . | . . . . Sneak Attacks . | . . . . Combat Hostiles . | . . . . Follow-up Attacks . | . . . . Damage Inflicted 647 | 10 213 413 11 Guns 515 | 10 213 281 11 Cannons . | . . . . Explosions 132 | . . 132 . Melee . | . . . . Ramming . | . . . . Kinetic 504 | 10 213 281 . Thermal 11 | . . . 11 Explosive 132 | . . 132 . Electromagnetic . | . . . . Impact . | . . . . Slashing . | . . . . Piercing . | . . . . Highest Corruption . | . . . . Average Corruption . | . . . . Corruption Purged . | . . . . Corruption Blocked . | . . . . Overload Shots . | . . . . Overflow Damage . | . . . . Projectiles . | . . . . Explosions . | . . . . Melee . | . . . . Knockbacks . | . . . . Impact . | . . . . Kinetic . | . . . . Secondary . | . . . . Self-Inflicted Damage . | . . . . Shots . | . . . . Rammed . | . . . . Targets Rammed . | . . . . Kicked . | . . . . Crushed . | . . . . Highest Temperature 12 | . 2 12 . Average Temperature 5 | . 2 7 . Received Heat Transfer 180 | . 54 117 9 Siege Activations . | . . . . Robots Corrupted . | . . . . Combat Hostiles . | . . . . Parts Fried . | . . . . Impact Corruptions . | . . . . Robots Melted . | . . . . Combat Hostiles . | . . . . Parts Melted . | . . . . Heat Transferred 25 | . . . 25 Parts Sabotaged . | . . . . Parts Stolen . | . . . . Parts Stripped . | . . . . Power Chain Reactions . | . . . . Alert | -11 -10 -10 -9 ------- Run | Yrd Mat Min Mat Peak Influence 160 | 5 142 160 15 Initial 55 | . 3 55 . Average 52 | . 39 62 1 Maximum Alert Level . | . . . . Low Security (%) 100 | 100 100 100 100 Level 1 . | . . . . Level 2 . | . . . . Level 3 . | . . . . Level 4 . | . . . . Level 5 . | . . . . High Security . | . . . . Max Security . | . . . . Squads Dispatched 1 | . . . 1 Investigation . | . . . . Extermination . | . . . . Reinforcement 1 | . . . 1 Assault . | . . . . Garrison . | . . . . Intercept . | . . . . Searches Triggered . | . . . . Construction Impeded . | . . . . Haulers Reinforced . | . . . . Active Scanning Responses . | . . . . Cargo Convoy Interrupts . | . . . . Stealth | -11 -10 -10 -9 --------- Run | Yrd Mat Min Mat Distress Signals . | . . . . Communications Jammed . | . . . . Distress Signals . | . . . . Times Spotted 19 | . 6 8 5 Peak Tracking Total 4 | . 3 2 4 Tactical Retreats . | . . . . Traps | -11 -10 -10 -9 ------- Run | Yrd Mat Min Mat Traps Triggered . | . . . . Indirectly . | . . . . Trap Hack Attempts . | . . . . Triggered . | . . . . Disarmed . | . . . . Reprogrammed . | . . . . Reused . | . . . . Traps Extracted . | . . . . Installed . | . . . . Triggered . | . . . . Machines | -11 -10 -10 -9 ---------- Run | Yrd Mat Min Mat Machines Disabled . | . . . . Max in Single Turn . | . . . . Machines Repaired . | . . . . Machines Dismantled . | . . . . Machines Sabotaged . | . . . . Overloaded Fab Kills . | . . . . Hacking | -11 -10 -10 -9 --------- Run | Yrd Mat Min Mat Machines Accessed 2 | . 1 1 . Terminals 1 | . 1 . . Fabricators . | . . . . Repair Stations . | . . . . Recycling Units . | . . . . Scanalyzers . | . . . . Garrison Access . | . . . . Total Hacks 3 | . 2 1 . Successful 2 | . 1 1 . Failed 1 | . 1 . . Catastrophic . | . . . . Database Lockouts . | . . . . Manual 2 | . 2 . . Terminals 2 | . 2 . . Fabricators . | . . . . Repair Stations . | . . . . Recycling Units . | . . . . Scanalyzers . | . . . . Garrison Access . | . . . . Terminal Hacks 2 | . 1 1 . Open Door 1 | . . 1 . Branch Access Points 1 | . 1 . . Fabricator Hacks . | . . . . Repair Station Hacks . | . . . . Recycling Unit Hacks . | . . . . Scanalyzer . | . . . . Garrison Access Hacks . | . . . . Unauthorized Hacks . | . . . . Terminals . | . . . . Fabricators . | . . . . Repair Stations . | . . . . Recycling Units . | . . . . Scanalyzers . | . . . . Garrison Access . | . . . . Data Cores Recovered . | . . . . Used . | . . . . Hacking Detections 1 | . 1 . . Full Trace Events . | . . . . Feedback Events . | . . . . Feedback Blocked . | . . . . Robot Schematics Acquired . | . . . . Robots Built . | . . . . Authchips . | . . . . Time . | . . . . Total Robot Build Rating . | . . . . Part Schematics Acquired . | . . . . Parts Built . | . . . . Authchips . | . . . . Time . | . . . . Total Part Build Rating . | . . . . Parts Repaired . | . . . . Time . | . . . . Parts Recycled . | . . . . Recycled Matter . | . . . . Retrieved Matter . | . . . . Retrieved Components . | . . . . Parts Scanalyzed . | . . . . Part Schematics Acquired . | . . . . Parts Damaged . | . . . . Bothacking | -11 -10 -10 -9 ------------ Run | Yrd Mat Min Mat Used RIF Installer . | . . . . Robots Hacked . | . . . . Non-combat . | . . . . Combat . | . . . . Robot Hacks Applied . | . . . . Relay Couplers Released . | . . . . Fabnet Peak Effective % . | . . . . Robots Rewired . | . . . . Allies Hacked . | . . . . Hacks Repelled . | . . . . Allies | -11 -10 -10 -9 -------- Run | Yrd Mat Min Mat Total Allies 4 | . . 4 . Largest Group 3 | . . 3 1 Highest-Rated Group 40 | . . 40 31 Highest-Rated Ally 31 | . . 31 31 Total Orders . | . . . . Ally Attacks 10 | . . 2 8 Total Damage 118 | . . 13 105 Kills . | . . . . Allies Corrupted . | . . . . Allies Melted . | . . . . Intel | -11 -10 -10 -9 ------- Run | Yrd Mat Min Mat Robot Analysis Total . | . . . . Derelict Logs Recovered 2 | . . 2 . Drone Launches . | . . . . Drone Recoveries . | . . . . Exploration | -11 -10 -10 -9 ------------- Run | Yrd Mat Min Mat Turns Passed 1552 | 62 343 1079 68 Spaces Moved 722 | 44 146 504 28 Core 13 | 13 . . . Treads . | . . . . Legs 709 | 31 146 504 28 Wheels . | . . . . Hover . | . . . . Flight . | . . . . Fastest Speed 50 | 50 120 190 190 Average Speed 182 | 105 176 190 197 Slowest Speed 260 | 200 190 260 260 Overloaded Moves . | . . . . Propulsion Burnouts . | . . . . Robots Hopped . | . . . . Cave-ins Triggered . | . . . . Exploration Rate (%) 34 | 4 40 88 5 Regions Visited 3 Branch Regions 1 Pre-discovered Areas 1 | . . 1 . Known Exits Taken 1 | . 1 . . Unknown Exits Taken 2 | 1 . 1 . Scrap Searched 1 | . . 1 . Spaces Dug . | . . . . Terrain Destroyed 30 | . . 30 . Melee . | . . . . Projectile . | . . . . AOE 30 | . . 30 . Terrain Rammed . | . . . . Walls Destroyed . | . . . . Machines Disabled . | . . . . Actions | -11 -10 -10 -9 --------- Run | Yrd Mat Min Mat Total 879 | 58 203 580 38 Wait 85 | . 37 40 8 Move 719 | 43 145 503 28 Hop . | . . . . Pick Up 17 | 7 5 5 . Fast Attach . | . . . . Attach 11 | 7 . 3 1 Detach . | . . . . Swap 4 | . 2 2 . Drop 1 | . . 1 . Fire 42 | 1 14 26 1 Melee . | . . . . Ram . | . . . . Kick . | . . . . Crush . | . . . . Escape Stasis . | . . . . Rewire . | . . . . Trap . | . . . . Miscellaneous . | . . . . Route ------- -11/Scrapyard -10/Materials -10/Mines -9/Materials History --------- Turn | Location | Event 5 | -11/Scrapyard | Discovered new exit (range 15) 63 | -11/Scrapyard | Entered Materials 236 | -10/Materials | Identified exit to Mines 315 | -10/Materials | Build established: Mutant 406 | -10/Materials | Entered Mines 559 | -10/Mines | Assembled infested the area 564 | -10/Mines | Assisted by a Guerilla fighting off Assembled 708 | -10/Mines | Assisted by bots powering up and referring to "LRC-V3" 1013 | -10/Mines | Lost 3 allies 1275 | -10/Mines | Escorted by a lone wolf Derelict 1408 | -10/Mines | Met a Derelict who couldn't figure out how to use a Trap Extractor 1459 | -10/Mines | Discovered new exit (range 14) 1485 | -10/Mines | Entered Materials 1485 | -9/Materials | Accompanied by 1 ally 1485 | -9/Materials | Evolved 2 slots: Utility x2 1553 | -9/Materials | Self-destructed Last Messages --------------- 01275_ A derelict emerges from the shadows: "Nice work disposing of those Unaware! I'm happy to return the favor and help see you out of these parts." 01407_ Connecting with SHOP.Sys... >>Open Door Sealed Doors opened. 01408_ QQ-9RG(g): "So I found this thing but I have no idea how to use it. And who the hell trapped this place to begin with?!" 01408_ QQ-9RG(g): "I give up! Here you try, I'm outta here before something nasty happens..." 01408_ Tosses Imp. Trap Extractor to the ground. 01459_ EXIT=FOUND PARAMETERS=UTILITY+2 LOCATION=UNKNOWN GOAL=ESCAPE 01487_ QQ-9RG(g): "What?! This place again? I'm sticking with you." 01495_ ALERT: Hostiles spotted, dispatching reinforcements to Terminal M009. 01539_ Aluminum Leg destroyed. 01539_ S-10 Pest destroyed. Map ----- +----------------------------------------------------+ | ???????????????????????????????? | | ???????????????????????????????? | | ???????????????????????????????? | | ???????????????????????????????? | | ???????????????????????????????? | | ???????????????????????????????? | | ???????????????????????????????? | | ???????????????????????????????? | | ???????????????????????????????? | | ???????????????????????????????? | | ???????????????????????????????? | | ???????????????????????????????? | | ???????????????????????????????? | | ???????????????????????????????? | | ???????????????????????????????? | | ???????????????????????????????? | | ???????????????????????????????? | | ???????????????????????????????? | | ???????????????????????????????? | | ???????????????????????????????? | | ??????????## ???# ?????????????? | | ??????????# ##+########????? | | ??????????# %[ Ys #????? | | ??????????# * %* #????? | | ??????????# g #????? | | ????????????????### #####@#????? | | ????????????????????????# #????? | | ????????????????????????# #????? | | ????????????????????????# #????? | | ????????????????????????# #????? | | ???????????#????????????# #????? | | ???????????# ???????????# #????? | | ???????????# ??????????# #????? | | ???????????# ??????????# #????? | | ???????????# ?????#####+##???? | | ???????????# ###### #???? | | ???????????# #] """ #???? | | ???????????# # """ #???? | | ???????????# + """ #???? | | ????????????##### # """ #???? | | ????????????????# # #???? | | ????????????????# ##########?? | | ????????????????# # #? | | ????????????????# + #? | | ????????????????# # """ #? | | ????????????????# # """ #? | | ????????????????##### """ #? | | ????????????????????# "T" #? | | ????????????????????? "????? | | ????????????????????? ????? | +----------------------------------------------------+ Best States ------------- Heat Dissipation 42 Energy Generation 10 Energy Capacity 250 Matter Stores 300 Matter Capacity 300 Sight Range 16 Terrain Scan Density 10 Evasion (%) 55 Item Schematics ----------------- None Robot Schematics ------------------ None Fabricated ------------ Nothing Alien Tech Used ----------------- None Achievements -------------- None Challenges ------------ None Game ------ Seed LightpackMobileMapper Manual? 0 Play Time 00:11:46 Cumulative 56.6 hours Start 2025.01.02 @ 01:11:15 End 2025.01.08 @ 01:52:17 Sessions 3 Manual Loads 0 Difficulty Rogue Special Mode None Game No. 93 Rogue 79 Adventurer 13 Explorer 1 Win Type - Total 0 Types 0/0/0/0/0/0/0/0/0 Lore% 8 Gallery% 35 Achievement% 28 Wizard Run 0 Options --------- Layout 0 ASCII 0 Keyboard 0 Movement Mouse Keybinds 0 Fullscreen 1 Font 18/SmallcapsGlow Map View 76x50 Zoom Use 48% Tactical HUD 1 Map Filters NONE Filters NONE Steam 1 RUN: fdab8791-8fd0-4b14-832d-3fc0a7e2145d